[Event "Szczawno Festival IM 2018"]
[Site "Szczawno"]
[Date "2018.12.20"]
[Round "8"]
[White "Sergeev, Vladimir"]
[Black "Karpus, Michal"]
[Result "0-1"]
[ECO "A06"]
[WhiteElo "2402"]
[BlackElo "2355"]
[Annotator "NA"]
[PlyCount "158"]
[EventDate "2018.12.14"]
[EventType "tourn"]
[EventCountry "POL"]
[SourceTitle "playchess.com"]
[Source "ChessBase"]
[SourceQuality "1"]
[TimeControl "40/5400+30:900+30"]

1. Nf3 {[%emt 0:00:00]} d5 {[%emt 0:00:00]} 2. g3 {[%emt 0:00:00]} g6 {[%emt 0:00:59]} 3. c4 {[%emt 0:00:00]} e6 {[%emt 0:00:26]} 4. Bg2 {[%emt 0:00:07]} Bg7 {[%emt 0:00:09]} 5. O-O {[%emt 0:00:24] A13: English Opening: 1...e6} Nf6 {[%emt 0:00:15]} 6. Qc2 {[%emt 0:02:46]} O-O {[%emt 0:01:07]} 7. b3 {[%emt 0:00:24]} b6 {[%emt 0:01:49]} 8. Bb2 {[%emt 0:01:18]} Bb7 {[%emt 0:00:51]} 9. d4 {[%emt 0:00:39] LiveBook: 4 Games} Na6 {[%emt 0:05:54]} 10. Nbd2 {[%emt 0:04:47]} c5 $146 {[%emt 0:02:55]} ({Predecessor:} 10... Rc8 11. Rad1 Qe7 12. Qb1 Rfd8 13. Ne5 c5 14. Qa1 cxd4 15. Bxd4 {½-½ (36) Sirosh,I (2380)-Cruz,C (2571) Batumi 2018}) 11. dxc5 {[%emt 0:15:42]} bxc5 {[%emt 0:01:28]} 12. Ne5 {[%emt 0:06:39]} Qb6 {[%emt 0:02:30]} 13. e3 {[%emt 0:02:08]} Nb4 {[%emt 0:03:18]} 14. Qb1 {[%emt 0:01:29]} a5 {[%emt 0:04:57]} 15. a3 {[%emt 0:00:56]} Na6 {[%emt 0:01:22]} 16. Qc2 {[%emt 0:00:22]} Rfd8 {[%emt 0:02:16]} 17. cxd5 {[%emt 0:00:31]} exd5 {[%emt 0:00:48]} 18. Rfd1 {[%emt 0:01:13]} Rab8 {[%emt 0:10:25]} 19. Rac1 {[%emt 0:03:35]} Bc8 {[%emt 0:07:32]} 20. e4 {[%emt 0:15:17]} d4 {[%emt 0:02:59]} 21. Ndc4 {[%emt 0:02:40]} Qc7 {[%emt 0:05:57]} 22. Re1 {[%emt 0:04:31]} Be6 {[%emt 0:01:50]} 23. Bf1 {[%emt 0:06:56]} Ne8 {[%emt 0:02:41]} 24. Nd3 {[%emt 0:02:04]} Nd6 {[%emt 0:01:00]} 25. Nf4 {[%emt 0:01:24]} Bxc4 {[%emt 0:04:54]} 26. Bxc4 {[%emt 0:00:28]} Nxc4 {[%emt 0:00:23] Pin} 27. Qxc4 {[%emt 0:00:03]} Qb7 {[%emt 0:00:22]} 28. Rb1 {[%emt 0:02:07]} Qb5 {[%emt 0:05:19]} 29. Ba1 {[%emt 0:16:25] [#]} a4 $1 {[%emt 0:02:04]} 30. Qxb5 {[%emt 0:00:20]} (30. Rec1 $17 {was worth a try.}) 30... Rxb5 {[%emt 0:00:17]} 31. bxa4 {[%emt 0:00:10] [#]} Rxb1 $1 {[%emt 0:02:02]} 32. Rxb1 {[%emt 0:00:01]} c4 {[%emt 0:00:19]} 33. Rc1 {[%emt 0:02:25]} d3 {[%emt 0:01:22]} 34. e5 {[%emt 0:00:01]} Nc5 {[%emt 0:01:23]} 35. Bc3 {[%emt 0:05:22]} Ne4 {[%emt 0:05:37]} 36. Ba5 {[%emt 0:00:10]} c3 {[%emt 0:02:16]} 37. Nxd3 {[%emt 0:03:46]} Rxd3 {[%emt 0:00:10]} 38. Kf1 {[%emt 0:00:37]} Bxe5 {[%emt 0:00:53]} 39. Ke2 {[%emt 0:00:02]} Nc5 {[%emt 0:02:07]} 40. Rc2 {[%emt 0:00:00]} Rd2+ {[%emt 0:00:00]} 41. Rxd2 {[%emt 0:00:36]} cxd2 {[%emt 0:08:14]} 42. Bxd2 {[%emt 0:00:04]} Nxa4 {[%emt 0:00:09]} 43. Kd3 {[%emt 0:01:02]} Kg7 {[%emt 0:01:40]} 44. Kc4 {[%emt 0:00:25]} Kf6 {[%emt 0:00:57]} 45. Kb3 {[%emt 0:06:58]} (45. f4 $142 Ba1 46. Kb4) 45... Nb6 {[%emt 0:01:11]} 46. Be3 {[%emt 0:00:27]} Nc8 {[%emt 0:00:52]} 47. a4 {[%emt 0:00:43]} Ke6 {[%emt 0:00:29]} 48. Kc4 {[%emt 0:00:13]} Bc7 {[%emt 0:01:03]} 49. h3 {[%emt 0:02:47]} Nb6+ {[%emt 0:01:52]} 50. Kb5 {[%emt 0:00:09]} Nxa4 {[%emt 0:00:20]} 51. Kxa4 {[%emt 0:00:01]} Kd5 {[%emt 0:00:13]} 52. Kb5 {[%emt 0:00:22]} Be5 {[%emt 0:01:01]} 53. f3 {[%emt 0:02:26]} Bxg3 {[%emt 0:02:26]} 54. Kb4 {[%emt 0:00:01] [#]} Be1+ $1 {[%emt 0:01:33]} 55. Kb3 {[%emt 0:00:03]} Ba5 {[%emt 0:00:58]} 56. Kc2 {[%emt 0:00:02]} Kc4 {[%emt 0:00:21]} 57. Bf2 {[%emt 0:00:13]} f5 {[%emt 0:01:05]} (57... f6 $19 {and Black stays clearly on top.} 58. Be3 g5) 58. Be3 {[%emt 0:00:36]} Bb4 {[%emt 0:01:03]} 59. Bf2 {[%emt 0:03:25] [#]} (59. Bh6 $17) 59... g5 $1 {[%emt 0:01:36]} 60. Be3 {[%emt 0:00:11]} h6 {[%emt 0:00:25]} 61. Bb6 {[%emt 0:01:20]} f4 {[%emt 0:03:13]} 62. Ba7 {[%emt 0:00:40]} Ba5 {[%emt 0:07:28]} 63. Bf2 {[%emt 0:00:53]} Bc3 {[%emt 0:00:47]} 64. Bb6 {[%emt 0:00:03]} Bb4 {[%emt 0:01:03]} 65. Bf2 {[%emt 0:01:03]} Bc5 {[%emt 0:00:42]} 66. Be1 {[%emt 0:00:21]} h5 {[%emt 0:00:20]} 67. Bd2 $19 {[%emt 0:00:34]} (67. Bc3 $17) 67... Bb4 {[%emt 0:01:43]} 68. Bc1 {[%emt 0:04:00]} Kd4 {[%emt 0:00:57]} 69. Kd1 {[%emt 0:00:36]} Kd3 {[%emt 0:00:09]} 70. h4 {[%emt 0:00:05]} gxh4 {[%emt 0:00:23]} 71. Bxf4 {[%emt 0:00:02]} h3 {[%emt 0:00:18]} 72. Bh2 {[%emt 0:02:08]} Ke3 {[%emt 0:00:14]} 73. f4 {[%emt 0:00:05]} Kf2 {[%emt 0:00:29]} 74. f5 {[%emt 0:00:01]} Kg2 {[%emt 0:00:28]} 75. Ke2 {[%emt 0:01:28]} Kxh2 {[%emt 0:00:25]} 76. Kf1 {[%emt 0:00:04]} Bc3 {[%emt 0:00:22]} 77. Kf2 {[%emt 0:00:06]} Bd4+ {[%emt 0:00:08]} 78. Kf1 {[%emt 0:00:14]} Kg3 {[%emt 0:00:30]} 79. f6 {[%emt 0:00:01]} h2 {[%emt 0:00:09]} 0-1

[Event "Szczawno Festival IM 2018"]
[Site "Szczawno"]
[Date "2018.12.20"]
[Round "8"]
[White "Pacan-Milej, Kosma"]
[Black "Sliwicka, Alicja"]
[Result "0-1"]
[ECO "A46"]
[WhiteElo "2334"]
[BlackElo "2236"]
[Annotator "NA"]
[PlyCount "54"]
[EventDate "2018.12.14"]
[EventType "tourn"]
[EventCountry "POL"]
[SourceTitle "playchess.com"]
[Source "ChessBase"]
[SourceQuality "1"]
[TimeControl "40/5400+30:900+30"]

{[%evp 8,53,52,26,60,49,60,32767,32767,32767,32767,32767,32767,43,32767,35,32767,20,18,14,24,0,23,2,32767,-1,15,32767,32767,32767,32767,32767,32767,32767,32767,-102,32767,32767,-472,32767,-512,-479,-483,-505,-520,-741,-783,-891]} 1. d4 {[%emt 0:00:00]} Nf6 {[%emt 0:00:00]} 2. Nf3 {[%emt 0:00:00]} d6 {[%emt 0:00:00]} 3. c4 {[%emt 0:00:02]} Nbd7 {[%emt 0:00:00]} 4. Nc3 {[%emt 0:00:14]} e5 {[%emt 0:00:00]} 5. g3 {[%emt 0:00:09]} Be7 {[%emt 0:00:10]} 6. Bg2 {[%emt 0:00:06]} O-O {[%emt 0:00:07]} 7. O-O {[%emt 0:00:09]} c6 {[%emt 0:00:06]} 8. Qc2 {[%emt 0:00:16]} Re8 {[%emt 0:00:08]} 9. h3 {[%emt 0:00:59]} Bf8 {[%emt 0:01:18]} 10. e4 {[%emt 0:01:09]} a6 {[%emt 0:01:12]} 11. Be3 {[%emt 0:08:33] LiveBook: 11 Games A55: Old Indian Defence with Nf3 and e4} (11. d5 cxd5 12. cxd5 b5 13. Be3 Nb6 14. Nd2 Bd7 15. Rfc1 Qb8 16. b3 Rc8 17. a3 Be7 18. Qd3 Bd8 {½-½ (81) Belous,V (2554)-Onischuk,V (2574) Taganrog 2013}) 11... b5 {[%emt 0:03:33]} 12. cxb5 {[%emt 0:11:52]} axb5 {[%emt 0:01:57]} 13. Rfd1 {[%emt 0:08:23]} Qa5 $146 {[%emt 0:05:47]} ({Predecessor:} 13... Bb7 14. a3 Qb8 15. Rac1 Rc8 16. Qb3 h6 17. Nh4 exd4 18. Bxd4 Nc5 {1-0 (37) Horvath,T-Demeny,A (2145) Hungary 2004}) 14. dxe5 {[%emt 0:02:27]} dxe5 {[%emt 0:01:27]} 15. Nd2 {[%emt 0:04:24]} Nc5 {[%emt 0:10:08]} 16. Ne2 {[%emt 0:18:18]} b4 {[%emt 0:07:13]} 17. Nc1 {[%emt 0:06:36]} Be6 {[%emt 0:04:57]} 18. Ncb3 {[%emt 0:03:48]} Nxb3 {[%emt 0:00:23]} 19. Nxb3 {[%emt 0:00:06]} Qa4 {[%emt 0:00:42]} 20. Bg5 {[%emt 0:06:20]} c5 {[%emt 0:01:55]} 21. Bxf6 {[%emt 0:02:34]} gxf6 {[%emt 0:00:20]} 22. Rdc1 {[%emt 0:06:14]} c4 {[%emt 0:01:28]} 23. Nd2 {[%emt 0:00:35]} Qxc2 {[%emt 0:00:11]} 24. Rxc2 {[%emt 0:00:02]} b3 {[%emt 0:01:05]} 25. Rcc1 {[%emt 0:00:39]} Rxa2 {[%emt 0:01:27]} 26. Bf1 {[%emt 0:01:25]} c3 {[%emt 0:00:40]} 27. Rxa2 $19 {[%emt 0:01:38]} cxd2 {[%emt 0:00:14]} 0-1

[Event "Szczawno Festival IM 2018"]
[Site "Szczawno"]
[Date "2018.12.20"]
[Round "8"]
[White "Chylewski, Patryk"]
[Black "Fus, Jakub"]
[Result "0-1"]
[ECO "A13"]
[WhiteElo "2268"]
[BlackElo "2265"]
[Annotator "NA"]
[PlyCount "80"]
[EventDate "2018.12.14"]
[EventType "tourn"]
[EventCountry "POL"]
[SourceTitle "playchess.com"]
[Source "ChessBase"]
[SourceQuality "1"]
[TimeControl "40/5400+30:900+30"]

1. c4 {[%emt 0:00:00]} e6 {[%emt 0:00:00]} 2. Nc3 {[%emt 0:00:00]} Bb4 {[%emt 0:00:43]} 3. e4 {[%emt 0:00:00]} c5 {[%emt 0:07:03]} 4. Nb5 {[%emt 0:00:05]} Nc6 {[%emt 0:08:02]} 5. a3 {[%emt 0:06:16]} Ba5 {[%emt 0:00:33]} 6. Nd6+ {[%emt 0:14:42]} (6. b4 $5 cxb4 7. Bb2 $11) 6... Kf8 {[%emt 0:02:16]} 7. b4 {[%emt 0:03:43]} cxb4 {[%emt 0:04:58]} (7... Qf6 $1 $11 8. Rb1 cxb4) 8. Bb2 {[%emt 0:02:25]} f6 {[%emt 0:22:33]} 9. Nf3 {[%emt 0:06:37]} ({Much weaker is} 9. Qh5 Qe7 $15) 9... Qe7 {[%emt 0:05:31]} 10. Nxc8 {[%emt 0:01:21]} Rxc8 {[%emt 0:00:06]} 11. Be2 {[%emt 0:00:39]} bxa3 {[%emt 0:10:30]} 12. Bxa3 {[%emt 0:02:24]} Bb4 {[%emt 0:00:05]} 13. Bxb4 {[%emt 0:01:22]} Qxb4 {[%emt 0:00:26]} 14. O-O {[%emt 0:03:42]} Nge7 {[%emt 0:03:52] [#]} 15. d4 $1 {[%emt 0:06:53]} Kf7 {[%emt 0:02:40]} 16. Rb1 {[%emt 0:03:48]} Qa5 {[%emt 0:12:21]} 17. Rxb7 {[%emt 0:07:36]} Rhd8 {[%emt 0:04:35]} 18. d5 {[%emt 0:05:35]} Nb8 {[%emt 0:01:39]} 19. Nd4 {[%emt 0:01:36]} e5 {[%emt 0:04:23]} (19... Kg8 {might work better.} 20. Qa1 Qxa1 21. Rxa1 exd5) 20. Nb5 {[%emt 0:00:31]} Kf8 {[%emt 0:01:14]} 21. Rxa7 {[%emt 0:03:44]} Qb6 {[%emt 0:00:05]} 22. Qd3 {[%emt 0:03:17]} Qc5 {[%emt 0:02:21]} 23. Qh3 {[%emt 0:01:20]} h6 {[%emt 0:01:26]} 24. Qg4 {[%emt 0:01:27]} Qb6 {[%emt 0:01:48]} 25. h4 {[%emt 0:03:13]} g5 {[%emt 0:00:22]} 26. g3 {[%emt 0:01:48]} Kg7 {[%emt 0:01:03]} 27. Kg2 {[%emt 0:00:06]} Rg8 {[%emt 0:01:32]} 28. f4 {[%emt 0:03:29]} exf4 {[%emt 0:00:16]} 29. gxf4 {[%emt 0:00:44]} Ng6 {[%emt 0:00:28]} 30. hxg5 {[%emt 0:07:18]} hxg5 {[%emt 0:00:37]} 31. e5 {[%emt 0:08:13]} gxf4 $18 {[%emt 0:01:10]} (31... Nh4+ $16 32. Kh2 Rh8 33. exf6+ Qxf6) 32. Rxf4 {[%emt 0:01:02]} fxe5 {[%emt 0:00:28]} 33. Rf3 {[%emt 0:00:23]} Rcf8 {[%emt 0:00:43]} 34. Rxd7+ {[%emt 0:01:08]} Nxd7 {[%emt 0:00:09]} 35. Qxd7+ {[%emt 0:00:08]} Kh8 {[%emt 0:00:24]} 36. c5 {[%emt 0:00:51]} Nf4+ {[%emt 0:00:41] Discovered Attack (Double check)} 37. Kf1 {[%emt 0:00:30]} Rg1+ {[%emt 0:00:38]} 38. Kxg1 {[%emt 0:00:27]} Qg6+ {[%emt 0:00:03]} 39. Kf2 {[%emt 0:00:18]} Qg2+ {[%emt 0:00:04]} 40. Ke3 {[%emt 0:00:00]} Qxe2# {[%emt 0:00:00] Kd4} 0-1

[Event "Szczawno Festival IM 2018"]
[Site "Szczawno"]
[Date "2018.12.20"]
[Round "8"]
[White "Tejaswini, Sagar"]
[Black "Kislinsky, Alexey"]
[Result "1-0"]
[ECO "B01"]
[WhiteElo "2177"]
[BlackElo "2425"]
[Annotator "NA"]
[PlyCount "49"]
[EventDate "2018.12.14"]
[EventType "tourn"]
[EventCountry "POL"]
[SourceTitle "playchess.com"]
[Source "ChessBase"]
[SourceQuality "1"]
[TimeControl "40/5400+30:900+30"]

{[%evp 9,49,33,32767,54,53,32767,32767,32767,32767,101,96,90,32767,90,68,100,320,331,579,592,645,815,824,866,32767,32767,32767,32767,32767,32767,1434,1350,1364,519,1196,32767,32767,32767,29994,32767,32767,29998]} 1. e4 {[%emt 0:00:00]} d5 {[%emt 0:04:26]} 2. exd5 {[%emt 0:00:00]} Qxd5 {[%emt 0:00:03]} 3. Nc3 {[%emt 0:00:00]} Qa5 {[%emt 0:00:06]} 4. d4 {[%emt 0:00:00]} Nf6 {[%emt 0:00:05]} 5. Nf3 {[%emt 0:00:02]} Bg4 {[%emt 0:00:49]} 6. h3 {[%emt 0:00:25]} Bh5 {[%emt 0:00:08]} 7. g4 {[%emt 0:01:03]} Bg6 {[%emt 0:00:05]} 8. Ne5 {[%emt 0:01:38]} e6 {[%emt 0:00:07]} 9. h4 {[%emt 0:02:33]} Bb4 {[%emt 0:00:36]} 10. Bd2 {[%emt 0:03:11] LiveBook: 27 Games B01: Scandinavian Defence} Be4 {[%emt 0:04:34]} (10... Nbd7 11. Nc4 Qa6 12. h5 Bxc3 13. bxc3 Be4 14. f3 Bd5 15. Ne3 Qd6 16. Rh3 h6 17. c4 Bc6 {0-1 (48) Rublevsky,S (2702)-Munoz Pantoja,M (2441) Berlin 2015}) 11. Nxe4 $2 {[%emt 0:07:03]} (11. Nc4 $18 {is the precise move to win.} Bxh1 12. Nxa5 Bxa5 13. f3) 11... Nxe4 {[%emt 0:00:06]} 12. c3 {[%emt 0:01:08]} Be7 $2 {[%emt 0:00:06]} (12... Nxd2 $16 13. Bg2 (13. Qxd2 Bd6 $14) (13. Kxd2 Bd6 $14) 13... Qb5) 13. Qf3 {[%emt 0:04:07]} f5 $2 $146 {[%emt 0:11:29]} ({Predecessor:} 13... Nd6 {might work better.} 14. c4 (14. Nxf7 Nxf7 15. Qxb7 O-O 16. Qxa8 Qb6 17. Qe4 Qxb2 18. Bd3 Qxa1+ 19. Ke2 {1-0 (19) Mladenov,A-Stoimenov,K (1799) Sofia 2009}) 14... Qa4) 14. gxf5 {[%emt 0:03:42]} exf5 {[%emt 0:08:12]} 15. Qxf5 {[%emt 0:02:10]} Nd6 {[%emt 0:00:32]} 16. Qe6 {[%emt 0:02:48]} Rf8 {[%emt 0:04:14]} 17. Bg5 {[%emt 0:03:57]} Rf6 {[%emt 0:01:23]} 18. Bxf6 {[%emt 0:01:03]} gxf6 {[%emt 0:00:05]} 19. Nc4 {[%emt 0:03:10]} Nxc4 {[%emt 0:02:31]} 20. Bxc4 {[%emt 0:00:54]} Nd7 {[%emt 0:04:33]} 21. Qf7+ {[%emt 0:00:19]} Kd8 {[%emt 0:00:06]} 22. Rg1 {[%emt 0:00:37]} Nf8 {[%emt 0:01:30]} 23. Rg7 {[%emt 0:01:00]} Bd6 {[%emt 0:00:41]} 24. Qxf6+ {[%emt 0:00:37]} Kc8 {[%emt 0:00:09]} 25. Be6+ {[%emt 0:00:38]} 1-0